bitfinex-derivatives/quotes_ETHF0:USTF0_20260121
["timestamp","ask_amount","ask_price","bid_price","bid_amount"]
[1768978994182,0.00326428,2982.9,2981.7,0.14914082]
[1768978994380,0.00326428,2982.9,2981.9,0.14914082]
[1768978994581,0.00326428,2982.9,2981.7,2.096]
[1768978994785,0.00326428,2982.9,2981.7,5.453]
[1768978995287,0.00326428,2982.9,2981.7,5.59548531]
[1768978997392,0.00326428,2982.9,2981.8,0.14248531]
[1768978998886,0.00326428,2982.9,2981.9,2.095]
[1768978999388,0.00326428,2982.9,2981.9,2.23748531]
[1768979000293,0.00326428,2982.9,2982.0,0.14248531]
[1768979002491,0.16776,2983.5,2982.0,0.14248531]
[1768979003593,0.1701991,2983.5,2982.0,0.14248531]
[1768979003987,0.0024391,2983.5,2982.0,0.14248531]
[1768979006495,0.0024391,2983.5,2982.0,0.69162711]
[1768979006695,0.0024391,2983.5,2982.1,0.14248531]
[1768979007391,0.16773,2984.0,2982.1,0.14248531]
[1768979008193,0.16773,2984.0,2982.8,0.00503203]
[1768979008584,0.1677,2984.6,2983.0,0.14248531]
[1768979008782,0.30808783,2984.6,2983.0,0.14248531]
[1768979008998,0.14038783,2984.5,2983.1,2.094]
[1768979009695,0.14461727,2984.5,2983.1,2.094]
[1768979010095,0.14461727,2984.5,2983.1,2.23648531]
[1768979011502,0.14461727,2984.5,2983.2,2.093]
[1768979012804,0.00422944,2984.5,2983.2,2.23548531]
[1768979013003,0.00422944,2984.5,2983.3,0.14248531]
[1768979013301,1.51567293,2984.9,2983.6,1.76210864]
[1768979013302,1.3752851,2984.9,2983.6,1.76210864]
[1768979013796,1.3752851,2984.9,2983.6,0.14248531]
[1768979014004,0.14038783,2984.6,2983.2,0.14248531]
[1768979014199,0.14353408,2984.6,2983.2,1.31]
[1768979014502,0.31123408,2984.6,2983.1,2.093]
[1768979014896,0.1677,2984.5,2983.1,2.093]
[1768979015195,0.1677,2984.5,2982.8,0.15104857]
[1768979015401,0.16771,2984.3,2982.9,1.156]
[1768979015792,0.16771,2984.3,2982.8,3.50604857]
[1768979015998,0.16771,2984.3,2982.9,2.092]
[1768979016197,0.16771,2984.3,2982.8,0.15104857]
[1768979016500,0.16771,2984.3,2982.9,1.39]
[1768979017004,0.16771,2984.3,2983.0,0.14248531]
[1768979018504,0.16772,2984.2,2983.0,0.14248531]
[1768979023005,0.00314625,2984.6,2983.0,0.14248531]
[1768979024212,0.00314625,2984.6,2983.2,0.14248531]
[1768979024414,0.00314625,2984.6,2983.3,2.23348531]
[1768979027625,0.00314625,2984.6,2983.4,0.14588039]
[1768979027817,0.00314625,2984.6,2983.6,0.14588039]
[1768979028320,0.16765,2985.4,2983.6,0.14588039]
[1768979028521,1.24977615,2985.3,2983.6,0.14588039]
[1768979028726,0.91053258,2985.2,2983.6,0.14588039]
[1768979028920,0.91053258,2985.1,2983.6,0.14588039]
[1768979029110,0.00387642,2985.1,2983.6,0.14588039]
[1768979029712,0.00387642,2985.1,2984.1,0.15091242]
[1768979038922,0.00387642,2985.1,2984.6,1.07888325]
[1768979040317,0.00387642,2985.1,2984.6,1.22476364]
[1768979041129,0.13562721,2985.8,2984.6,1.22476364]
[1768979041423,0.91281345,2985.7,2984.8,1.07888325]
[1768979041630,1.24649325,2986.1,2984.8,1.07888325]
[1768979041820,1.25214451,2986.0,2984.8,1.07888325]
[1768979042020,1.25214451,2985.9,2984.8,1.07888325]
[1768979042221,0.91271577,2985.8,2984.8,1.07888325]
[1768979043534,0.91271577,2985.8,2984.6,1.22476364]
[1768979043728,0.91271577,2985.8,2984.8,1.07888325]
[1768979044931,0.16764,2985.7,2984.8,1.07888325]
[1768979047036,0.16765,2985.5,2984.8,1.07888325]
[1768979047526,0.16765,2985.5,2984.6,1.22476364]
[1768979047728,0.16765,2985.5,2984.8,1.07888325]
[1768979062445,0.0034089,2985.9,2985.4,1.07888325]
[1768979062646,0.0034089,2985.9,2985.4,1.08181026]
[1768979063441,0.0034089,2985.9,2985.4,0.00292701]
[1768979067451,0.1710289,2985.9,2984.8,1.07888325]
[1768979067654,1.22723186,2985.5,2984.2,3.1575223]
[1768979067848,1.22723186,2985.5,2984.2,0.13551604]
[1768979068356,1.22723186,2985.5,2984.3,1.07888325]
[1768979068558,0.16766,2985.3,2984.3,1.08267017]
[1768979069756,0.16766,2985.3,2984.5,1.07888325]
[1768979072159,0.16766,2985.3,2984.7,1.07888325]
[1768979072352,1.39827076,2985.9,2984.7,1.07888325]
[1768979072552,0.90874569,2985.8,2985.1,1.07888325]
[1768979072752,0.1710389,2985.9,2985.1,1.07888325]
[1768979073055,0.1710389,2985.9,2984.7,0.13551604]
[1768979073458,0.16763,2985.8,2984.7,0.13551604]
[1768979073959,0.16764,2985.7,2984.7,0.13551604]
[1768979074253,0.16765,2985.5,2984.3,0.13930296]
[1768979077360,0.16765,2985.5,2984.4,0.13551604]
[1768979078555,0.0034089,2985.9,2985.1,0.13551604]
[1768979078857,0.0034089,2985.9,2984.7,3.04305111]
[1768979079054,0.1710289,2985.9,2984.7,0.13551604]
[1768979079263,0.0034089,2985.9,2984.5,2.083]
[1768979079459,0.16763,2985.8,2984.4,5.2405223]
[1768979079854,0.16764,2985.7,2984.4,2.21851604]
[1768979080358,0.16764,2985.7,2984.4,0.13551604]
[1768979083862,0.16765,2985.6,2984.4,0.13551604]
[1768979087369,0.16765,2985.6,2984.4,2.21851604]
[1768979088772,0.16765,2985.5,2984.4,2.21851604]
[1768979089068,0.16765,2985.5,2984.4,0.13551604]
[1768979089263,0.16765,2985.5,2984.4,2.21751604]
[1768979090176,0.16766,2985.3,2984.3,0.00378692]
[1768979090969,0.16766,2985.3,2984.3,0.14243578]
[1768979095164,0.16766,2985.3,2984.3,0.00378692]
[1768979101685,0.16767,2985.2,2984.3,0.00378692]
[1768979101883,0.13568052,2984.7,2984.1,0.00503203]
[1768979102180,0.16769,2984.8,2984.1,0.00503203]
[1768979102877,0.16769,2984.8,2984.1,0.00918977]
[1768979103886,0.13568052,2985.1,2983.5,3.02200626]
[1768979104090,0.16773,2984.1,2982.9,3.02200626]
[1768979104391,0.16773,2984.1,2983.0,1.07853507]
[1768979105087,0.16773,2984.1,2983.0,1.08244097]
[1768979105291,0.16773,2984.0,2983.0,0.0039059]
[1768979105689,0.16774,2983.9,2983.0,0.0039059]
[1768979106391,0.00503203,2983.7,2983.0,0.0039059]
[1768979106591,0.00911948,2983.7,2983.0,0.0039059]
[1768979111895,0.16774,2983.9,2983.0,0.14255476]
[1768979112090,0.16774,2983.9,2983.1,0.14368089]
[1768979112992,0.17083216,2983.9,2983.1,0.14368089]
[1768979115799,0.17083216,2983.9,2983.1,0.00503203]
[1768979117001,0.16771,2984.5,2983.1,0.15312704]
[1768979118103,0.17061245,2984.5,2983.4,0.14809501]
[1768979118296,0.00290245,2984.5,2983.4,0.14809501]
[1768979119704,0.16767,2985.1,2983.7,0.14809501]
[1768979120797,0.17061205,2985.1,2983.7,0.14809501]
[1768979127611,0.17061205,2985.1,2983.8,3.50209501]
[1768979127810,0.00294205,2985.1,2983.8,0.14809501]
[1768979128011,0.00294205,2985.1,2984.0,0.14809501]
[1768979129206,0.16764,2985.7,2984.3,0.14809501]
[1768979129915,0.16764,2985.7,2984.7,0.00503203]
[1768979130217,0.00413572,2985.7,2984.8,2.079]
[1768979131317,0.00413572,2985.7,2984.7,0.00503203]
[1768979131618,0.00413572,2985.7,2984.8,2.079]
[1768979133117,0.00413572,2985.7,2984.9,1.07848401]
[1768979138018,0.00413572,2985.7,2984.9,1.22657902]
[1768979138223,0.00413572,2985.7,2985.1,1.07848401]
[1768979138422,0.1676,2986.3,2985.1,1.22657902]
[1768979139119,0.1676,2986.3,2985.3,1.07848401]
[1768979139426,0.1712173,2986.3,2985.3,1.08091086]
[1768979141222,1.21409309,2986.2,2985.3,0.00242685]
[1768979141422,1.07848401,2986.0,2985.3,0.00242685]
[1768979146529,0.13560908,2986.1,2985.3,0.00242685]
[1768979147724,0.0036173,2986.3,2985.4,1.07848401]
[1768979147931,0.0036173,2986.3,2985.6,1.07848401]
[1768979148323,0.0036173,2986.3,2985.8,1.07848401]
[1768979148522,0.0036173,2986.3,2985.6,1.07848401]
[1768979152134,0.0036173,2986.3,2985.4,1.2287174]
[1768979152932,0.0036173,2986.3,2985.4,4.5817174]
[1768979153736,0.0036173,2986.3,2985.3,0.00242685]
[1768979154035,1.07848401,2986.0,2985.3,0.00242685]
[1768979154627,1.22441653,2985.9,2985.3,0.00242685]
[1768979155143,1.07848401,2986.1,2985.3,0.00242685]
[1768979157034,1.39563383,2986.3,2985.3,0.00242685]
[1768979157839,0.1712173,2986.3,2985.4,1.07848401]
[1768979159235,1.24970131,2986.3,2985.3,0.00242685]
[1768979159537,1.24970131,2986.3,2985.3,2.08042685]
[1768979160536,1.07848401,2986.1,2985.3,0.00242685]
[1768979160730,1.07848401,2985.9,2985.3,0.00242685]
[1768979161435,1.07848401,2986.1,2985.3,0.00242685]
[1768979163528,0.14593252,2986.2,2985.3,0.00242685]
[1768979164529,1.07848401,2986.1,2985.3,0.00242685]
[1768979165430,0.14593252,2986.2,2985.3,0.00242685]
[1768979170036,1.24970131,2986.3,2985.3,0.00242685]
[1768979171433,1.39563383,2986.3,2985.3,0.00242685]
[1768979177441,0.14843893,2986.2,2985.3,0.00242685]
[1768979180046,1.07848401,2986.1,2985.3,0.00242685]
[1768979190359,1.07848401,2986.1,2985.3,2.07842685]
[1768979190560,1.22692294,2986.1,2985.3,2.07842685]
[1768979193462,0.14843893,2986.1,2985.3,2.07842685]
[1768979196468,0.1712173,2986.3,2985.3,2.07842685]
[1768979198263,0.1712173,2986.3,2985.3,2.21607379]
[1768979199769,0.1712173,2986.3,2985.4,0.13764694]
[1768979201772,0.0036173,2986.3,2985.5,0.13764694]
[1768979201971,0.0036173,2986.3,2985.6,0.13764694]
[1768979203263,0.16757,2986.9,2985.6,0.13764694]
[1768979204461,0.1703209,2986.9,2985.6,0.13764694]
[1768979204861,0.1703209,2986.9,2985.8,3.02200626]
[1768979205069,0.1703209,2986.9,2985.9,2.079]
[1768979205070,0.14843893,2986.8,2985.9,2.079]
[1768979205769,0.14843893,2986.8,2985.7,3.02200626]
[1768979205968,0.13812254,2986.7,2985.8,2.079]
[1768979206663,0.13812254,2986.7,2985.6,3.02200626]
[1768979206864,0.13812254,2986.7,2985.7,2.079]
[1768979207964,0.16757,2986.8,2985.7,2.079]
[1768979208160,0.16757,2986.8,2985.7,2.22608664]
[1768979208363,0.16757,2986.8,2985.8,0.14708664]
[1768979218586,0.16757,2986.8,2985.7,2.079]
[1768979219381,0.16757,2986.8,2985.8,2.08]
[1768979220286,0.13812254,2986.6,2985.6,3.02200626]
[1768979220476,0.13812254,2986.5,2985.7,2.08]
[1768979220784,0.13812254,2986.5,2985.5,2.08]
[1768979222283,0.16759,2986.6,2985.5,2.08]
[1768979223584,0.30571254,2986.6,2985.5,2.08]
[1768979224184,0.30571254,2986.6,2985.3,0.14951349]
[1768979224378,0.30571254,2986.6,2985.4,2.079]
[1768979224884,0.13812254,2986.5,2985.3,0.00242685]
[1768979225081,0.13812254,2986.4,2985.3,0.00242685]
[1768979225984,0.13812254,2986.3,2985.3,0.00242685]
[1768979228693,0.30572254,2986.3,2985.3,0.00242685]
[1768979234297,0.1676,2986.3,2985.3,0.00242685]
[1768979241912,0.30371829,2986.3,2985.3,0.00242685]
[1768979242507,0.13611829,2986.2,2985.3,0.00242685]
[1768979244098,0.13611829,2986.0,2985.3,0.00242685]
[1768979244306,0.30373829,2986.0,2984.7,0.00503203]
[1768979244607,0.13611829,2985.9,2984.8,2.077]
[1768979244802,0.13611829,2985.9,2984.7,0.00503203]
[1768979245003,0.13611829,2985.9,2984.7,2.08203203]
[1768979245309,0.13611829,2985.9,2984.7,2.08608842]
[1768979246419,0.30373829,2985.9,2984.7,0.00908842]
[1768979246712,0.13611829,2985.7,2984.7,0.00908842]
[1768979253213,0.30375829,2985.7,2984.7,0.00908842]
[1768979253610,0.13611829,2985.6,2984.7,0.00908842]
[1768979254020,0.13611829,2985.4,2984.3,2.076]
[1768979254317,0.14114182,2985.4,2984.0,3.02200626]
[1768979254615,0.14114182,2985.4,2984.0,2.076]
[1768979255217,0.14114182,2985.4,2984.0,2.07947271]
[1768979255611,0.13611829,2985.3,2984.0,2.07947271]
[1768979255917,0.13611829,2985.3,2984.0,2.08047271]
[1768979257010,1.21521284,2985.3,2984.0,3.15956726]
[1768979259220,0.13611829,2986.5,2984.9,1.07909455]
[1768979259411,0.16762,2986.0,2984.9,1.07909455]
[1768979259722,1.24671455,2986.0,2984.7,1.21546105]
[1768979261429,1.24671455,2986.0,2984.9,1.07909455]
[1768979262233,1.24671455,2986.0,2984.7,1.21546105]
[1768979262731,1.07909455,2985.8,2984.5,1.07909455]
[1768979264042,1.07909455,2985.8,2984.5,1.21546105]
[1768979268826,1.24671455,2986.0,2984.7,1.21909423]
[1768979269233,1.24671455,2986.0,2984.9,1.07909455]
[1768979274939,1.24671455,2986.0,2984.7,0.13999968]
[1768979275134,1.24671455,2986.0,2984.7,1.21909423]
[1768979275644,1.24671455,2986.0,2984.8,0.13999968]
[1768979277949,1.24671455,2986.0,2984.8,1.21909423]
[1768979277950,0.16762,2986.0,2984.8,1.21909423]
[1768979280044,1.07909455,2986.3,2985.0,1.21909423]
[1768979281242,0.16759,2986.5,2985.4,1.07909455]
[1768979282451,0.16759,2986.5,2985.4,1.21909423]
[1768979282840,1.07909455,2986.4,2985.4,0.13999968]
[1768979294358,1.24668455,2986.5,2985.4,0.13999968]
[1768979294963,1.24668455,2986.5,2985.2,1.07909455]
[1768979295172,1.24668455,2986.5,2985.2,1.21454458]
[1768979304969,0.1479441,2986.7,2985.6,1.07909455]
[1768979305174,0.1479441,2986.7,2985.4,0.13545003]
[1768979305175,1.08184545,2986.9,2985.8,1.07909455]
[1768979305468,0.0027509,2986.9,2986.0,1.07909455]
[1768979305870,0.0027509,2986.9,2985.8,1.07909455]
[1768979306174,0.0027509,2986.9,2986.2,0.00502353]
[1768979306375,0.0027509,2986.9,2986.2,0.00918632]
[1768979316878,1.07909455,2986.7,2986.2,0.00918632]
[1768979318085,1.24941545,2986.9,2986.2,0.00918632]
[1768979318878,0.1703209,2986.9,2986.2,0.00918632]
[1768979321879,0.16757,2986.8,2986.2,0.00918632]
[1768979326785,0.16759,2986.6,2985.5,3.02200626]
[1768979326985,0.16759,2986.5,2985.5,3.02200626]
[1768979327285,0.16759,2986.5,2985.3,0.13545003]
[1768979327984,0.16759,2986.5,2985.3,0.13870953]
[1768979328687,0.1676,2986.4,2985.3,0.0032595]
[1768979329392,0.1676,2986.3,2985.3,0.0032595]
[1768979330880,0.1676,2986.3,2985.3,0.14017977]
[1768979335892,0.15188433,2986.8,2985.3,0.14017977]
[1768979347899,0.31945433,2986.8,2985.3,0.14017977]
[1768979349300,0.1468608,2986.7,2985.3,0.14017977]
[1768979349498,0.3144408,2986.7,2985.3,0.14017977]
[1768979349997,0.3144408,2986.7,2985.7,0.00502353]
[1768979350898,0.16759,2986.6,2985.7,0.00502353]
[1768979351906,0.16759,2986.5,2985.7,0.00502353]
[1768979358904,0.1468608,2986.7,2985.7,0.00502353]
[1768979365911,0.3144508,2986.7,2985.7,0.00502353]
[1768979370622,0.16759,2986.6,2985.7,0.00502353]
[1768979378618,0.14946786,2986.5,2985.4,3.02200626]
[1768979378827,0.14946786,2985.7,2984.9,4.22789069]
[1768979379213,0.16763,2985.8,2984.6,0.14906672]
[1768979379828,0.14946786,2986.2,2984.6,0.15282236]
[1768979381020,0.14946786,2986.2,2985.0,1.07840218]
[1768979391932,1.07840218,2986.1,2985.0,1.07840218]
[1768979392234,1.07840218,2986.1,2984.9,3.01335211]
[1768979392235,1.22272951,2985.7,2984.9,3.01335211]
[1768979392435,1.07840218,2985.5,2984.8,3.01335211]
[1768979392628,1.07840218,2985.5,2984.6,0.00375564]
[1768979397433,1.07840218,2985.3,2984.6,0.00375564]
[1768979398237,0.00502353,2985.2,2984.6,0.00375564]
[1768979400441,1.07840218,2984.7,2983.5,4.09175429]
[1768979400737,1.07840218,2984.7,2983.5,3.13940218]
[1768979401429,1.08256269,2984.7,2983.9,3.35565968]
[1768979401635,1.07840218,2984.5,2983.9,0.00365968]
[1768979401830,0.00416051,2984.7,2983.6,1.07840218]
[1768979402837,0.00416051,2984.7,2983.6,1.08241332]
[1768979406344,0.14848784,2984.7,2983.6,0.00401114]
[1768979406643,1.22272951,2984.4,2983.9,0.00502353]
[1768979409336,0.14432733,2984.3,2983.6,0.00401114]
[1768979409540,1.07840218,2983.8,2982.6,0.5491418]
[1768979409754,1.07840218,2983.8,2982.4,1.21755169]
[1768979410447,1.07840218,2983.6,2982.4,1.22065178]
[1768979410646,1.07840218,2983.4,2982.4,0.00310009]
[1768979410850,0.00502353,2983.3,2982.4,0.00310009]
[1768979411739,1.07840218,2983.0,2982.4,0.00310009]
[1768979412248,1.07840218,2983.2,2982.4,0.00310009]
[1768979417752,0.14935086,2983.3,2982.4,0.00310009]
[1768979418749,1.22775304,2983.3,2982.4,0.00310009]
[1768979426662,1.07840218,2983.1,2982.4,0.00310009]
[1768979428759,1.07840218,2982.9,2981.8,1.07840218]
[1768979428958,1.07840218,2982.9,2981.7,1.22083997]
[1768979429961,1.07840218,2982.9,2981.7,1.22462514]
[1768979432466,1.07840218,2983.1,2981.9,1.07840218]
[1768979432665,0.30749321,2983.2,2981.9,1.07840218]
[1768979432863,1.07840218,2983.1,2981.9,1.07840218]
[1768979441075,0.30749321,2983.2,2981.7,0.14622296]
[1768979443777,0.16778,2983.2,2981.8,0.14243779]
[1768979443970,0.00502353,2983.3,2982.1,0.14243779]
[1768979453990,0.00502353,2983.3,2982.2,0.14942389]
[1768979459602,0.15229387,2983.3,2982.0,3.01335211]
[1768979459792,0.15229387,2983.3,2981.9,4.22789069]
[1768979459793,0.32006387,2983.3,2981.9,4.22789069]
[1768979460104,0.32006387,2983.3,2981.8,3.50542389]
[1768979461501,0.32006387,2983.3,2981.9,0.14942389]
[1768979461812,0.00502353,2983.3,2981.9,0.14942389]
[1768979463812,0.15229387,2983.3,2981.9,0.14942389]
[1768979464111,0.15229387,2983.3,2981.9,2.20842389]
[1768979465012,0.14727034,2983.1,2981.7,0.00378517]
[1768979465314,0.14727034,2982.8,2981.7,0.00378517]
[1768979466207,1.22797115,2982.6,2981.7,0.00378517]
[1768979466405,0.14727034,2982.5,2981.7,0.00378517]
[1768979468907,0.14727034,2982.5,2981.0,2.059]
[1768979469912,0.14727034,2982.4,2981.0,2.06191935]
[1768979470120,0.14727034,2982.3,2981.0,2.06191935]
[1768979470308,1.08070081,2982.2,2981.0,2.06191935]
[1768979470616,1.22797115,2982.2,2981.0,2.06191935]
[1768979471005,0.31513034,2981.7,2980.3,0.14942389]
[1768979471206,1.08070081,2981.4,2979.9,0.14942389]
[1768979471812,1.39585115,2981.4,2979.9,0.14942389]
[1768979472007,0.0050322,2980.9,2979.9,0.14942389]
[1768979472211,0.0050322,2980.9,2979.9,0.15237073]
[1768979473316,0.0050322,2980.9,2979.9,0.00294684]
[1768979481922,0.14785411,2980.9,2979.9,0.00294684]
[1768979484528,0.0050322,2980.9,2979.9,0.00294684]
[1768979487327,0.0050322,2980.9,2979.9,0.13917889]
[1768979492333,0.16786,2981.7,2980.3,0.13623205]
[1768979493635,0.0050322,2981.3,2980.3,0.13623205]
[1768979501941,0.14282191,2982.2,2980.3,0.13623205]
[1768979502245,0.91719723,2982.1,2980.6,0.13623205]
[1768979502446,0.14282191,2982.2,2980.6,0.13623205]
[1768979502841,1.22424938,2982.2,2981.0,1.08142747]
[1768979503043,0.16783,2982.3,2981.2,1.08142747]
[1768979504643,1.08142747,2981.8,2980.7,0.13623205]
[1768979504847,1.08142747,2981.8,2980.4,1.08142747]
[1768979504848,1.08142747,2981.8,2980.6,1.08142747]
[1768979505448,1.08142747,2982.0,2980.8,1.08142747]
[1768979507256,1.08142747,2982.0,2980.8,1.22789446]
[1768979507458,1.24926747,2982.2,2981.0,1.08142747]
[1768979510653,0.16784,2982.1,2980.8,1.22789446]
[1768979510960,1.08142747,2981.8,2980.6,1.08142747]
[1768979515555,0.0050322,2981.5,2980.6,1.08142747]
[1768979516162,0.0050322,2981.5,2980.3,2.20446699]
[1768979516463,0.0050322,2981.5,2980.3,0.14646699]
[1768979516655,1.08142747,2981.2,2980.1,2.056]
[1768979516856,1.08142747,2981.0,2980.1,2.056]
[1768979517062,1.08142747,2981.2,2980.1,3.13742747]
[1768979518463,1.08142747,2981.0,2980.1,2.056]
[1768979520964,1.08142747,2981.0,2980.0,3.357]
[1768979521762,1.39926261,2981.2,2980.0,3.357]
[1768979524161,1.23137261,2981.2,2980.0,3.357]
[1768979524466,1.08142747,2981.2,2980.0,3.50346699]
[1768979524665,0.0050322,2981.5,2980.3,1.08142747]
[1768979524869,1.08142747,2981.4,2980.3,1.08142747]
[1768979525165,1.08142747,2981.4,2980.1,1.22789446]
[1768979527467,1.24930747,2981.4,2980.1,1.22789446]
[1768979528769,0.16788,2981.4,2980.2,0.14646699]
[1768979528971,0.16788,2981.4,2980.3,1.08142747]
[1768979532872,0.16788,2981.3,2980.3,1.08142747]
[1768979534171,0.16788,2981.3,2980.4,0.14646699]
[1768979534471,0.16788,2981.3,2980.7,1.08142747]
[1768979534858,0.16788,2981.3,2980.9,1.08142747]
[1768979535056,0.0050322,2981.5,2980.9,1.22789446]
[1768979539972,1.08142747,2981.7,2980.5,0.0050322]
[1768979540576,0.16789,2981.3,2980.5,0.0050322]
[1768979540775,0.16789,2981.2,2980.5,0.0050322]
[1768979542171,0.14159927,2981.2,2980.5,0.0050322]
[1768979542382,1.08142747,2980.9,2979.9,0.00294684]
[1768979543577,0.16792,2980.7,2979.9,0.00294684]
[1768979547072,0.16793,2980.4,2979.9,0.00294684]
[1768979547373,0.1714997,2980.4,2979.9,0.00294684]
[1768979553791,0.0035697,2980.4,2979.9,0.00294684]
[1768979555377,0.0086019,2980.4,2979.9,0.00294684]
[1768979556881,1.08142747,2980.1,2979.4,2.054]
[1768979557081,1.08142747,2979.9,2979.2,3.358]
[1768979557586,1.08142747,2980.1,2978.8,0.14645872]
[1768979557785,1.08142747,2980.1,2978.8,2.19945872]
[1768979558190,1.08142747,2980.1,2978.8,2.20228026]
[1768979559289,0.15020117,2980.4,2978.8,2.20228026]
[1768979559290,1.08142747,2979.9,2978.8,2.20228026]
[1768979560182,1.08142747,2979.9,2978.8,0.00282154]
[1768979560786,1.08142747,2979.7,2978.8,0.00282154]
[1768979561287,1.08142747,2979.3,2978.8,0.00282154]
[1768979561488,1.08142747,2979.3,2978.2,1.08142747]
[1768979561788,1.08142747,2979.3,2978.0,1.22788619]
[1768979562091,1.22302674,2979.3,2978.0,1.08142747]
[1768979562289,1.08142747,2979.1,2977.9,1.575]
[1768979562584,1.08142747,2978.7,2977.9,0.00253739]
[1768979562990,1.08142747,2978.9,2977.9,0.00253739]
[1768979564889,0.14159927,2979.0,2977.9,0.00253739]
[1768979565591,1.22544338,2979.0,2977.9,0.00253739]
[1768979565788,0.14926466,2978.5,2976.8,3.50848542]
[1768979566191,1.08384411,2978.2,2976.8,0.14948542]
[1768979566394,0.14320828,2978.1,2976.5,0.971]
[1768979566793,0.14751518,2978.1,2976.5,0.97381695]
[1768979567187,0.14751518,2978.1,2976.5,0.00281695]
[1768979568398,0.14320828,2978.0,2976.5,0.00281695]
[1768979568896,0.14320828,2977.9,2976.5,0.00281695]
[1768979570797,0.31127828,2977.9,2976.5,0.00281695]
[1768979570992,0.31129828,2977.8,2976.5,0.00281695]
[1768979571199,0.14320828,2977.6,2976.5,0.00281695]
[1768979571399,0.14320828,2977.4,2976.5,0.00281695]
[1768979571595,0.14320828,2977.4,2975.6,0.13976397]
[1768979572097,0.14320828,2977.3,2975.6,0.13976397]
[1768979572399,0.14320828,2977.2,2975.6,0.13976397]
[1768979572596,0.14320828,2977.0,2975.6,0.00430604]
[1768979572897,0.0043069,2978.1,2974.7,0.13976397]
[1768979572898,0.16816,2976.4,2974.7,0.13976397]
[1768979573393,0.31136828,2976.4,2974.7,0.13976397]
[1768979574000,0.31136828,2976.4,2974.7,0.14345227]
[1768979574902,0.16816,2976.4,2974.7,0.14345227]
[1768979575099,0.16818,2976.0,2974.7,0.14345227]
[1768979575402,0.14320828,2975.7,2974.7,0.0036883]
[1768979575597,0.14320828,2975.7,2974.1,3.361]
[1768979575799,0.00433714,2976.0,2973.9,0.21917175]
[1768979575800,0.16824,2974.9,2973.9,0.21917175]
[1768979576000,0.16825,2974.8,2973.9,0.21917175]
[1768979576603,0.17325075,2975.5,2974.0,0.13976397]
[1768979578309,0.14320828,2975.4,2973.9,0.22306299]
[1768979578508,0.17325075,2975.5,2974.0,0.13976397]
[1768979579208,0.00504075,2975.5,2974.0,0.13976397]
[1768979582605,0.00504075,2975.5,2974.2,0.13976397]
[1768979582913,0.00504075,2975.5,2974.5,0.00504075]
[1768979583506,0.14824903,2975.5,2974.5,0.00504075]
[1768979583706,0.14320828,2975.4,2973.9,0.22306299]
[1768979584302,0.14320828,2975.4,2973.9,0.36282696]
[1768979584507,0.00504075,2975.5,2974.0,0.13976397]
[1768979586814,0.00504075,2975.5,2974.1,0.13976397]
[1768979587909,0.00504075,2975.5,2974.1,0.30805397]
[1768979588208,0.00433714,2976.0,2974.8,0.13976397]
[1768979588509,0.00433714,2976.0,2974.9,0.13976397]
[1768979589614,0.00504075,2975.7,2974.9,0.13976397]
[1768979590005,0.00330581,2975.7,2974.9,0.13976397]
[1768979593207,0.00433714,2976.0,2974.9,0.13976397]
[1768979593410,0.00433714,2976.0,2974.9,0.30800397]
[1768979593718,0.00433714,2976.0,2975.0,0.13976397]
[1768979594310,0.00433714,2976.0,2975.0,3.364]
[1768979594913,0.00504075,2975.8,2975.0,3.364]
[1768979595419,0.00504075,2975.8,2974.9,3.50651185]
[1768979596124,0.00504075,2975.8,2974.9,0.14251185]
[1768979597122,0.00433714,2976.0,2974.9,0.14251185]
[1768979597330,0.16815,2976.6,2975.2,0.14251185]
[1768979597518,0.30740936,2976.6,2975.2,0.14251185]
[1768979597718,0.30740936,2976.6,2975.1,0.00504075]
[1768979598017,1.89022029,2977.8,2975.1,0.00504075]
[1768979598018,0.13925936,2976.1,2975.1,0.00504075]
[1768979598328,0.31012303,2976.1,2975.1,0.00504075]
[1768979598621,0.13925936,2975.9,2974.2,3.53228]
[1768979599027,0.13925936,2975.9,2974.2,0.16828]
[1768979599623,0.13925936,2975.9,2974.2,3.53228]
[1768979599925,0.13925936,2975.9,2974.2,3.67479185]
[1768979600223,0.13925936,2975.9,2974.3,0.14251185]
[1768979600526,0.16818,2976.0,2974.3,0.14251185]
[1768979602619,0.13925936,2975.9,2974.3,0.14251185]
[1768979602922,0.16818,2976.0,2974.3,0.14251185]
[1768979606532,0.16818,2976.0,2974.4,0.14251185]
[1768979607230,0.00504075,2975.5,2974.4,0.14251185]
[1768979609131,0.00504075,2975.5,2974.3,0.14251185]
[1768979611030,0.00504075,2975.5,2974.1,3.364]
[1768979611233,0.14430011,2975.5,2973.9,0.36557484]
[1768979611426,0.13925936,2975.4,2973.9,0.36557484]
[1768979611632,0.13925936,2975.3,2973.9,0.36557484]
[1768979611932,0.13925936,2975.3,2973.9,0.22306299]
[1768979612127,0.16823,2975.2,2973.9,0.22306299]
[1768979613428,0.30748936,2975.2,2973.9,0.22306299]
[1768979613631,0.30750936,2974.8,2973.9,0.22306299]
[1768979613832,0.16825,2974.8,2973.9,0.22306299]
[1768979614224,0.13925936,2975.2,2973.9,0.22306299]
[1768979614725,0.13925936,2975.2,2974.3,0.00504075]
[1768979614927,0.13925936,2975.2,2973.9,0.22306299]
[1768979618237,0.16822,2975.3,2973.9,0.36557484]
[1768979619636,0.16823,2975.2,2973.9,0.36557484]
[1768979619932,0.16823,2975.1,2973.9,0.22306299]
[1768979625349,0.30779794,2975.1,2973.9,0.22306299]
[1768979627535,0.16823,2975.1,2973.9,0.22306299]
[1768979628440,0.16823,2975.1,2973.9,0.36468726]
[1768979628744,0.00504075,2975.5,2974.0,0.14162427]
[1768979631145,0.17325075,2975.5,2974.0,0.14162427]
[1768979631353,0.00504075,2975.5,2974.0,0.14162427]
[1768979632647,0.16822,2975.3,2974.0,0.14162427]
[1768979634854,0.16823,2975.2,2974.0,0.14162427]
[1768979635246,0.31109244,2975.2,2973.9,0.22306299]
[1768979635447,0.16823,2975.1,2973.9,0.22306299]
[1768979638559,0.16823,2975.1,2973.9,0.36468726]
[1768979640862,0.16823,2975.1,2974.1,1.08656168]
[1768979641459,0.16823,2975.1,2974.3,1.08656168]
[1768979641665,0.00504075,2975.5,2974.5,1.08656168]
[1768979642361,0.00504075,2975.5,2974.7,1.08656168]
[1768979642568,0.00504075,2975.5,2974.9,1.08656168]
[1768979642861,0.00504075,2975.5,2974.6,0.14162427]
[1768979645664,0.00504075,2975.5,2974.3,3.01380935]
[1768979645864,0.00504075,2975.5,2974.3,2.048]
[1768979646066,0.00504075,2975.5,2974.1,3.15543362]
[1768979646264,0.00504075,2975.5,2974.1,0.14162427]
[1768979646465,0.00504075,2975.5,2974.2,0.14162427]
[1768979648774,0.00504075,2975.5,2974.3,0.14162427]
[1768979652875,0.16821,2975.6,2974.3,0.14162427]
[1768979652876,0.17086367,2976.1,2974.3,0.14162427]